bitfinex-derivatives/quotes_SOLF0:USTF0_20260312
["timestamp","ask_amount","ask_price","bid_price","bid_amount"]
[1773357029941,23.40530425,86.694,86.648,10.385]
[1773357035254,23.40530425,86.694,86.655,10.384]
[1773357036353,36.34,86.721,86.638,36.34]
[1773357036354,23.25001105,86.706,86.662,10.383]
[1773357037143,26.68171116,86.7,86.662,10.383]
[1773357037349,26.68171116,86.7,86.654,10.384]
[1773357038059,23.36806006,86.698,86.654,10.384]
[1773357038354,23.36806006,86.689,86.646,10.385]
[1773357040857,23.36806006,86.689,86.65,10.384]
[1773357042350,33.74806006,86.689,86.65,10.384]
[1773357042553,23.20755155,86.688,86.65,10.384]
[1773357044149,23.20755155,86.688,86.642,10.385]
[1773357045852,10.38,86.686,86.642,10.385]
[1773357046061,23.24648314,86.685,86.642,10.385]
[1773357046958,23.26855929,86.683,86.642,10.385]
[1773357051657,34.06305741,86.682,86.64,14.20808269]
[1773357051859,23.7027328,86.681,86.64,14.20808269]
[1773357052457,23.7027328,86.681,86.64,17.61476468]
[1773357053360,23.7027328,86.681,86.643,25.40997607]
[1773357054357,10.38,86.689,86.647,25.40997607]
[1773357054663,23.74817333,86.709,86.661,25.40997607]
[1773357054854,23.74817333,86.709,86.663,25.40997607]
[1773357055262,10.378,86.706,86.663,25.40997607]
[1773357055463,23.76835379,86.706,86.662,36.34]
[1773357056561,23.76835379,86.706,86.661,10.383]
[1773357056755,23.90742369,86.699,86.653,10.384]
[1773357056960,23.92690178,86.689,86.651,36.34]
[1773357057856,25.22515481,86.687,86.651,36.34]
[1773357059360,25.22515481,86.699,86.652,25.40997607]
[1773357060564,25.22515481,86.696,86.655,10.384]
[1773357061068,25.22515481,86.696,86.656,25.40997607]
[1773357061469,25.22515481,86.696,86.66,3.40668199]
[1773357061866,25.22515481,86.696,86.658,10.384]
[1773357062169,25.22515481,86.696,86.656,25.40997607]
[1773357063168,24.74916904,86.694,86.656,25.40997607]
[1773357063872,10.38,86.692,86.656,25.40997607]
[1773357065165,24.80858263,86.691,86.656,25.40997607]
[1773357065371,24.80858263,86.691,86.651,46.724]
[1773357067067,24.80858263,86.691,86.651,36.34]
[1773357067874,24.80858263,86.691,86.651,61.74997607]
[1773357068072,24.80858263,86.691,86.652,25.40997607]
[1773357071570,25.11259456,86.702,86.661,25.40997607]
[1773357072868,25.11259456,86.702,86.666,10.383]
[1773357079281,25.11259456,86.702,86.666,35.79297607]
[1773357081680,25.11259456,86.702,86.669,10.382]
[1773357081880,25.11259456,86.702,86.67,26.44845867]
[1773357082987,10.378,86.708,86.67,26.44845867]
[1773357083587,10.378,86.708,86.672,10.382]
[1773357085084,36.4678463,86.708,86.672,10.382]
[1773357085290,26.0898463,86.707,86.672,10.382]
[1773357085484,26.0898463,86.707,86.673,26.44845867]
[1773357086993,26.12031851,86.705,86.66,29.85514066]
[1773357087991,26.12031851,86.705,86.66,26.44845867]
[1773357088190,26.12031851,86.705,86.66,29.85514066]
[1773357088992,10.378,86.703,86.662,26.44845867]
[1773357089288,36.54126207,86.703,86.662,26.44845867]
[1773357089495,36.34,86.73,86.678,26.44845867]
[1773357089496,26.16326207,86.719,86.678,26.44845867]
[1773357090597,10.377,86.712,86.678,26.44845867]
[1773357091396,36.53926207,86.719,86.678,26.44845867]
[1773357092495,26.20808937,86.736,86.691,26.44845867]
[1773357092894,26.22135957,86.719,86.679,26.44845867]
[1773357094097,36.72005898,86.718,86.679,26.44845867]
[1773357095397,26.35690067,86.717,86.679,26.44845867]
[1773357097495,26.38697831,86.735,86.69,26.44845867]
[1773357097701,26.38697831,86.735,86.69,29.85344658]
[1773357098198,26.38396725,86.732,86.69,29.85344658]
[1773357100795,36.32,86.755,86.69,29.85344658]
[1773357100796,26.44264141,86.729,86.69,26.44845867]
[1773357101898,10.375,86.727,86.69,26.44845867]
[1773357104105,26.44264141,86.729,86.69,26.44845867]
[1773357104306,26.44264141,86.729,86.69,29.85344658]
[1773357107319,26.44264141,86.729,86.69,26.44845867]
[1773357110516,26.44264141,86.729,86.69,29.85344658]
[1773357118119,25.08667767,86.721,86.68,36.32]
[1773357118420,25.08667767,86.719,86.681,24.17181521]
[1773357118626,25.08667767,86.739,86.681,24.17181521]
[1773357118819,10.376,86.724,86.683,24.17181521]
[1773357119014,25.08667767,86.739,86.691,24.17181521]
[1773357119220,25.08667767,86.76,86.725,24.17181521]
[1773357119616,24.95667767,86.76,86.74,0.13]
[1773357119819,24.95667767,86.76,86.73,0.13]
[1773357120416,0.39,86.755,86.73,0.13]
[1773357120823,0.39,86.755,86.731,24.17181521]
[1773357121126,10.369,86.781,86.732,24.17181521]
[1773357121314,10.239,86.781,86.761,0.13]
[1773357121517,10.239,86.781,86.751,0.13]
[1773357122122,0.39,86.776,86.751,0.13]
[1773357123424,25.47667767,86.776,86.751,0.13]
[1773357123627,25.47667767,86.776,86.741,0.13]
[1773357123823,3.40498791,86.77,86.741,0.13]
[1773357124128,25.60667767,86.771,86.741,0.13]
[1773357124726,25.08667767,86.769,86.741,0.13]
[1773357125028,10.37,86.768,86.741,0.13]
[1773357125225,25.08667767,86.767,86.741,0.13]
[1773357129135,10.371,86.766,86.741,0.13]
[1773357129630,35.45867767,86.758,86.731,0.13]
[1773357129829,25.08667767,86.757,86.731,0.13]
[1773357130428,0.65,86.766,86.731,24.30181521]
[1773357130825,0.65,86.766,86.739,10.374]
[1773357131028,0.65,86.766,86.731,24.30181521]
[1773357131836,0.65,86.766,86.731,34.67681521]
[1773357132133,0.65,86.766,86.732,24.17181521]
[1773357132831,0.65,86.766,86.733,10.375]
[1773357133136,0.65,86.766,86.734,24.17181521]
[1773357134239,0.65,86.766,86.736,34.54581521]
[1773357134440,0.65,86.766,86.737,24.17181521]
[1773357135532,0.65,86.766,86.731,0.13]
[1773357135933,0.65,86.766,86.731,24.30181521]
[1773357139141,0.65,86.766,86.734,24.17181521]
[1773357140539,36.3,86.795,86.75,3.40498791]
[1773357140742,10.367,86.797,86.751,26.07475958]
[1773357141039,10.237,86.797,86.765,0.13]
[1773357141240,34.80778645,86.797,86.765,0.13]
[1773357141647,0.39,86.791,86.765,0.13]
[1773357143042,0.39,86.791,86.765,26.20475958]
[1773357146044,0.39,86.791,86.765,0.13]
[1773357148950,0.39,86.791,86.765,26.20475958]
[1773357149349,0.39,86.791,86.77,3.40498791]
[1773357149548,0.39,86.791,86.771,26.07475958]
[1773357150944,24.57078645,86.81,86.771,26.07475958]
[1773357151446,24.44078645,86.81,86.79,0.13]
[1773357152153,24.70078645,86.81,86.79,0.13]
[1773357152346,24.70078645,86.81,86.78,0.13]
[1773357152654,0.39,86.805,86.78,0.13]
[1773357154950,10.366,86.804,86.78,0.13]
[1773357155149,10.366,86.804,86.77,0.13]
[1773357155150,24.57078645,86.799,86.77,0.001]
[1773357155354,24.57078645,86.794,86.77,0.001]
[1773357156247,24.57078645,86.789,86.77,0.001]
[1773357156443,24.57078645,86.779,86.75,0.13]
[1773357156648,24.57078645,86.779,86.75,0.001]
[1773357157955,10.37,86.772,86.75,0.001]
[1773357158251,3.39713037,86.77,86.75,0.001]
[1773357158549,10.371,86.764,86.74,0.001]
[1773357167359,34.94078645,86.772,86.74,0.001]
[1773357167757,24.57078645,86.772,86.74,0.001]
[1773357178770,24.57078645,86.772,86.741,25.43428445]
[1773357178965,1.039,86.78,86.741,25.43428445]
[1773357178966,26.12689202,86.779,86.741,25.43428445]
[1773357180068,26.12689202,86.779,86.742,25.43428445]
[1773357180564,26.12689202,86.779,86.744,10.373]
[1773357180769,26.12689202,86.779,86.745,25.43428445]
[1773357181867,26.12689202,86.779,86.747,10.373]
[1773357182069,26.12689202,86.779,86.747,35.80728445]
[1773357183070,1.039,86.78,86.748,25.43428445]
[1773357183465,1.039,86.78,86.751,10.372]
[1773357183665,1.039,86.78,86.751,35.80628445]
[1773357184275,1.039,86.78,86.752,25.43428445]
[1773357187880,1.039,86.78,86.754,25.43428445]
[1773357188986,1.039,86.78,86.755,10.372]
[1773357189378,1.039,86.78,86.756,25.43428445]
[1773357190586,1.039,86.78,86.757,10.372]
[1773357190782,1.039,86.78,86.757,35.80628445]
[1773357191788,1.039,86.78,86.758,25.43428445]
[1773357192887,1.039,86.78,86.759,10.371]
[1773357198794,1.039,86.78,86.76,25.43428445]
[1773357198992,26.12689202,86.798,86.762,25.43428445]
[1773357199191,25.99689202,86.798,86.778,0.13]
[1773357200091,26.25689202,86.798,86.778,0.13]
[1773357200286,0.26,86.798,86.778,0.13]
[1773357200493,0.26,86.798,86.771,25.43428445]
[1773357200494,36.3,86.816,86.771,25.43428445]
[1773357200891,36.17,86.816,86.786,0.13]
[1773357201192,25.24607112,86.815,86.786,0.13]
[1773357201598,25.63607112,86.811,86.786,0.13]
[1773357201892,3.39713037,86.81,86.786,0.13]
[1773357202397,28.64320149,86.81,86.786,0.13]
[1773357202892,0.52,86.806,86.776,0.13]
[1773357203091,25.24607112,86.805,86.776,0.13]
[1773357204592,10.366,86.804,86.776,0.13]
[1773357204798,25.24607112,86.803,86.776,0.13]
[1773357208496,0.52,86.806,86.776,26.09948318]
[1773357209704,0.52,86.806,86.778,25.96948318]
[1773357211206,0.52,86.806,86.779,10.369]
[1773357211402,0.52,86.806,86.78,25.96948318]
[1773357211800,24.06400674,86.836,86.791,25.96948318]
[1773357211999,23.93728892,86.848,86.816,0.13]
[1773357212601,3.39667195,86.84,86.816,0.13]
[1773357213403,0.26,86.842,86.816,0.13]
[1773357214105,24.29864793,86.842,86.816,0.13]
[1773357216306,0.26,86.842,86.816,0.13]
[1773357218414,0.26,86.842,86.817,25.96948318]
[1773357226215,0.26,86.842,86.818,10.364]
[1773357226409,24.48395282,86.863,86.821,26.03583029]
[1773357226609,0.44710064,86.863,86.833,26.03583029]
[1773357227319,0.31710064,86.863,86.833,26.03583029]
[1773357228416,3.39667195,86.86,86.832,0.13]
[1773357228621,26.68321451,86.86,86.832,0.13]
[1773357232119,23.28654256,86.86,86.832,0.13]
[1773357232824,0.31710064,86.863,86.832,24.84750261]
[1773357241033,23.08508142,86.883,86.837,24.71750261]
[1773357241241,23.40218206,86.906,86.841,24.71750261]
[1773357241433,23.40218206,86.899,86.851,24.71750261]
[1773357241740,0.26,86.868,86.835,24.71750261]
[1773357242036,23.66484686,86.868,86.832,0.13]
[1773357242230,23.40484686,86.859,86.832,0.13]
[1773357242427,0.26,86.868,86.832,0.13]
[1773357242632,0.26,86.868,86.832,24.84750261]
[1773357243832,0.26,86.868,86.835,10.362]
[1773357244037,0.26,86.868,86.836,24.71750261]
[1773357244934,0.26,86.868,86.84,24.71750261]
[1773357245136,3.39667195,86.89,86.84,28.11417456]
[1773357245333,3.26667195,86.89,86.84,28.11417456]
[1773357245636,3.26667195,86.89,86.87,0.13]
[1773357246035,3.26667195,86.89,86.86,0.13]
[1773357246341,0.39,86.885,86.86,0.13]
[1773357252243,22.11960113,86.92,86.86,24.71750261]
[1773357252548,3.39667195,86.91,86.89,0.13]
[1773357252743,3.39667195,86.9,86.87,0.13]
[1773357253047,3.39667195,86.88,86.86,0.13]
[1773357253850,0.78,86.9,86.86,0.13]
[1773357253851,3.39667195,86.89,86.86,0.13]
[1773357255752,25.10166674,86.89,86.86,0.13]
[1773357256051,21.70767084,86.885,86.84,24.84750261]
[1773357257954,21.70767084,86.885,86.842,24.71750261]
[1773357258546,21.70767084,86.885,86.84,0.13]
[1773357258749,20.27728734,86.869,86.84,0.13]
[1773357258948,3.39667195,86.87,86.841,24.71750261]
[1773357259147,21.31968541,86.89,86.841,24.71750261]
[1773357259552,21.31968541,86.89,86.842,24.71750261]
[1773357260355,21.31968541,86.89,86.84,3.52667195]
[1773357260356,21.31968541,86.89,86.851,24.71750261]
[1773357260557,1.04,86.89,86.851,24.71750261]
[1773357260751,0.001,86.89,86.861,24.83590246]
[1773357261956,0.001,86.89,86.869,10.358]
[1773357262356,0.07252422,86.884,86.869,10.358]
[1773357263054,0.07252422,86.884,86.843,36.26]
[1773357263055,0.07252422,86.884,86.844,24.83590246]
[1773357264758,0.07252422,86.884,86.85,10.361]
[1773357266256,0.07252422,86.884,86.85,35.19690246]
[1773357266456,0.07252422,86.884,86.851,24.83590246]
[1773357267161,0.07252422,86.884,86.853,35.19590246]
[1773357267862,0.07252422,86.884,86.853,24.83590246]
[1773357268563,0.07252422,86.884,86.854,10.36]
[1773357269160,0.07252422,86.884,86.853,24.83590246]
[1773357269161,0.07252422,86.884,86.86,10.359]
[1773357270558,0.001,86.89,86.868,24.83590246]
[1773357271166,3.39767195,86.89,86.865,10.359]
[1773357271567,0.001,86.89,86.865,10.359]
[1773357272269,24.52045277,86.89,86.858,10.36]
[1773357272866,20.65658961,86.879,86.84,0.13]
[1773357273071,20.65658961,86.879,86.84,24.96590246]
[1773357273665,3.39110174,86.88,86.84,24.96590246]
[1773357273967,3.39110174,86.88,86.848,10.361]
[1773357275364,20.65882896,86.889,86.853,24.83590246]
[1773357275674,0.001,86.89,86.853,24.83590246]
[1773357276474,3.39210174,86.89,86.853,24.83590246]
[1773357276873,3.39210174,86.89,86.863,10.359]
[1773357277377,0.001,86.89,86.87,10.358]
[1773357277578,0.001,86.89,86.864,24.83590246]
[1773357278672,0.001,86.89,86.869,24.83590246]
[1773357278867,0.001,86.89,86.877,10.357]
[1773357280976,3.39110174,86.92,86.884,10.357]
[1773357281467,3.26110174,86.92,86.9,0.13]
[1773357281869,3.26110174,86.92,86.89,0.13]
[1773357282268,0.39,86.915,86.89,0.13]
[1773357282979,0.39,86.915,86.88,0.13]
[1773357282980,23.68769557,86.9,86.88,0.13]
[1773357284077,3.91110174,86.91,86.88,0.13]
[1773357286377,24.66024945,86.91,86.88,0.13]
[1773357286572,0.52,86.91,86.88,0.13]
[1773357287883,0.52,86.91,86.881,10.357]
[1773357288078,0.52,86.91,86.881,35.62106433]
[1773357288282,0.52,86.91,86.881,25.26406433]
[1773357289478,0.52,86.91,86.887,0.07287488]
[1773357289881,0.52,86.91,86.888,10.356]
[1773357291484,0.52,86.91,86.887,0.07287488]
[1773357292083,3.39110174,86.93,86.888,24.6589277]
[1773357292278,3.26110174,86.93,86.9,0.13]
[1773357292479,26.11284857,86.93,86.9,0.13]
[1773357294584,3.39110174,86.92,86.9,0.13]
[1773357295087,36.24,86.946,86.92,10.352]
[1773357295282,28.29159075,86.96,86.917,24.6589277]
[1773357295481,3.26110174,86.95,86.936,0.13]
[1773357295681,3.26110174,86.95,86.926,0.13]
[1773357296187,0.26,86.948,86.926,0.13]
[1773357299183,27.83747171,86.94,86.906,0.13]
[1773357299491,36.24,86.968,86.906,0.13]
[1773357299492,3.39110174,86.92,86.906,0.13]
[1773357299685,3.39110174,86.92,86.89,24.6589277]
[1773357301286,0.65,86.932,86.897,24.6589277]
[1773357301990,0.65,86.932,86.861,36.24]
[1773357301991,3.39110174,86.96,86.901,24.6589277]
[1773357302384,3.26110174,86.96,86.94,0.13]
[1773357303192,3.52110174,86.96,86.94,0.13]
[1773357303784,28.40718273,86.96,86.93,0.13]
[1773357303990,3.39110174,86.95,86.92,0.13]
[1773357304287,3.91110174,86.95,86.92,0.13]
[1773357304484,3.91110174,86.95,86.921,10.352]
[1773357305087,3.91110174,86.95,86.927,0.07273525]
[1773357305686,0.52,86.95,86.927,0.07273525]
[1773357305998,3.91110174,86.95,86.927,0.07273525]
[1773357306594,0.52,86.95,86.927,0.07273525]
[1773357308895,3.91110174,86.95,86.927,0.07273525]
[1773357309089,3.91110174,86.95,86.929,10.351]
[1773357309687,0.52,86.95,86.929,10.351]
[1773357311093,36.24,86.974,86.929,10.351]
[1773357311094,26.18814793,86.996,86.929,24.6589277]
[1773357311293,3.00110174,86.96,86.929,24.6589277]
[1773357311595,308.79121553,87.023,86.901,36.22]
[1773357311596,26.05814793,86.997,86.946,24.7889277]
[1773357311788,29.44927165,86.99,86.946,24.7889277]
[1773357311994,26.05816991,86.99,86.946,24.7889277]
[1773357312189,3.39110174,86.98,86.946,24.6589277]
[1773357312795,36.22,87.001,86.946,24.6589277]
[1773357313099,3.39110174,87.0,86.951,24.6589277]
[1773357313295,26.31957431,87.008,86.951,24.6589277]
[1773357313497,26.31957431,87.008,86.966,24.6589277]
[1773357313803,3.39110174,86.99,86.953,24.6589277]
[1773357314900,3.39110174,86.99,86.955,24.6589277]
[1773357316294,46.561,87.011,86.955,24.6589277]
[1773357316499,3.39110174,87.0,86.957,24.6589277]
[1773357317395,3.26110174,87.0,86.957,24.6589277]
[1773357317794,3.26110174,87.0,86.961,10.347]
[1773357318004,3.26110174,87.0,86.962,24.6589277]
[1773357318199,36.22,87.011,86.962,24.6589277]
[1773357318500,3.39110174,87.0,86.962,24.6589277]
[1773357319603,3.39110174,86.98,86.955,0.13]
[1773357321804,24.79673806,86.979,86.955,0.13]
[1773357321992,3.39110174,86.97,86.955,0.13]
[1773357322199,3.39110174,86.98,86.955,0.13]
[1773357325511,35.1878257,86.979,86.955,0.13]
[1773357325709,3.39110174,86.97,86.945,0.13]
[1773357325914,3.39110174,86.97,86.931,25.00164204]
[1773357325915,3.39110174,86.96,86.931,25.00164204]
[1773357326110,3.39110174,86.96,86.923,10.352]
[1773357326307,25.3628257,86.966,86.918,25.00164204]
[1773357326512,3.39110174,86.96,86.918,25.00164204]
[1773357326709,25.3628257,86.966,86.918,25.00164204]
[1773357327013,3.39110174,86.96,86.931,10.351]
[1773357328015,25.3628257,86.966,86.931,10.351]
[1773357328408,25.3628257,86.966,86.918,25.00164204]
[1773357328409,25.3628257,86.966,86.922,10.352]
[1773357328605,3.39110174,86.96,86.922,10.352]
[1773357329115,3.39110174,86.96,86.942,0.07261399]
[1773357333619,3.38605647,86.96,86.942,0.07261399]
[1773357336319,0.52,86.966,86.942,0.07261399]
[1773357337021,24.8428257,87.017,86.942,25.07425603]
[1773357337217,24.8428257,87.009,86.951,25.00164204]
[1773357337420,3.12605647,87.0,86.987,0.13]
[1773357337923,27.96888217,87.0,86.977,0.13]
[1773357338728,3.38605647,86.99,86.967,0.13]
[1773357339322,25.4928257,86.997,86.967,0.13]
[1773357339723,0.65,86.997,86.967,0.13]
[1773357340117,0.65,86.997,86.97,10.346]
[1773357343025,24.8428257,86.989,86.957,0.13]
[1773357343629,3.38605647,86.99,86.957,0.13]
[1773357343827,0.78,86.993,86.958,25.00164204]
[1773357344733,0.78,86.993,86.974,10.346]
[1773357345832,0.78,86.993,86.957,0.13]
[1773357345833,36.22,87.01,86.981,10.345]
[1773357346034,24.8428257,87.016,86.981,10.345]
[1773357346229,3.25605647,87.01,86.99,0.13]
[1773357346428,24.8428257,86.999,86.97,0.13]
[1773357346729,3.38605647,86.99,86.97,0.13]
[1773357347035,24.8428257,86.999,86.97,0.13]
[1773357348624,29.51873088,86.99,86.96,0.13]
[1773357349730,26.13267441,87.019,86.962,26.6849514]
[1773357349931,3.38605647,87.01,86.962,26.6849514]
[1773357350230,3.38605647,87.01,86.989,0.13]
[1773357350625,3.38605647,87.01,86.979,0.13]
[1773357350936,0.52,87.007,86.979,0.13]
[1773357351137,0.52,87.007,86.981,10.345]
[1773357353427,25.77529022,87.007,86.979,0.13]
[1773357353631,25.25529022,86.999,86.969,0.13]
[1773357354735,3.38605647,86.99,86.969,0.13]
[1773357355030,25.25529022,86.999,86.969,0.13]
[1773357357039,25.25529022,86.989,86.954,10.348]
[1773357357933,25.25529022,86.989,86.96,10.347]
[1773357358134,25.25529022,86.989,86.949,0.13]
[1773357358733,25.25529022,86.979,86.949,0.13]
[1773357359235,25.25529022,86.969,86.929,0.13]
[1773357359437,25.25529022,86.969,86.931,10.351]
[1773357359939,25.25529022,86.986,86.939,26.63269274]
[1773357360842,25.25529022,86.986,86.942,10.35]
[1773357361141,28.64134669,86.98,86.942,10.35]
[1773357361938,25.25529022,86.98,86.942,10.35]
[1773357367235,28.64134669,86.98,86.942,10.35]
[1773357367431,25.25529022,86.969,86.939,0.13]
[1773357367631,25.25529022,86.969,86.929,0.13]
[1773357367944,25.25529022,86.959,86.929,0.13]
[1773357368151,25.25529022,86.959,86.93,10.351]
[1773357370142,25.25529022,86.959,86.929,0.13]
[1773357372045,36.2,86.966,86.931,26.50269274]
[1773357372345,1.17,86.983,86.941,26.50269274]
[1773357372937,1.17,86.983,86.959,10.348]
[1773357374844,26.42529022,86.983,86.951,10.349]
[1773357378246,25.25529022,86.979,86.951,10.349]
[1773357378545,25.25529022,86.979,86.943,10.349]
[1773357379440,25.25529022,86.979,86.95,10.349]
[1773357382150,25.25529022,86.979,86.943,10.35]
[1773357384747,3.38605647,86.95,86.929,0.13]
[1773357385748,28.49406791,86.95,86.929,0.13]
[1773357386447,3.38605647,86.95,86.929,0.13]
[1773357387542,3.38605647,86.96,86.929,0.13]
[1773357387746,25.10801144,86.974,86.93,30.48391774]
[1773357388751,25.10801144,86.974,86.94,10.35]
[1773357389151,3.38605647,86.98,86.941,27.09786127]
[1773357390254,3.38605647,86.98,86.952,0.07245056]
[1773357390855,28.49406791,86.98,86.952,0.07245056]
[1773357395657,25.10801144,86.98,86.952,0.07245056]
[1773357396064,1.17,86.983,86.952,0.07245056]
[1773357396863,3.38457869,86.98,86.952,0.07245056]
[1773357397764,25.10801144,86.982,86.953,10.348]
[1773357399768,1.17,86.983,86.953,10.348]
[1773357400963,1.17,86.983,86.962,10.347]
[1773357401464,1.17,86.983,86.954,27.09786127]
[1773357402967,1.17,86.983,86.954,37.44586127]
[1773357404665,1.17,86.983,86.954,10.348]
[1773357406362,3.38457869,86.98,86.954,10.348]
[1773357408362,3.38457869,86.98,86.952,0.07245056]
[1773357408561,27.07068144,87.024,86.96,3.38457869]
[1773357408863,3.38457869,87.01,86.961,25.09834476]
[1773357409060,3.38457869,87.01,86.994,0.13]
[1773357410259,36.22,87.026,86.994,0.13]
[1773357410457,36.22,87.026,86.934,21.16146592]
[1773357410459,30.47691564,87.039,86.956,21.03146592]
[1773357410661,3.25457869,87.03,87.015,0.13]
[1773357410862,33.5307536,87.03,87.005,0.13]
[1773357411064,8.46921628,87.056,86.985,0.13]
[1773357411065,30.01617491,87.009,86.985,0.13]
[1773357411463,36.2,87.057,86.985,0.13]
[1773357411464,0.52,87.016,86.985,0.13]
[1773357412960,0.52,87.016,86.985,10.474]
[1773357413569,0.52,87.016,86.963,36.2]
[1773357413570,3.38457869,87.04,86.996,10.343]
[1773357413758,30.2782777,87.044,87.006,0.13]
[1773357413958,30.27950653,87.059,87.006,0.13]
[1773357414159,33.66408522,87.04,87.006,0.13]
[1773357414367,1.99971268,87.107,87.006,0.13]
[1773357414368,30.27950653,87.029,87.006,0.13]
[1773357416165,0.13,87.045,87.006,0.13]
[1773357416375,30.27813743,87.045,87.006,0.13]
[1773357416766,30.12465132,87.029,86.996,0.13]
[1773357416967,30.05965132,87.019,86.986,0.13]
[1773357417163,30.44965132,87.019,86.986,0.13]
[1773357417467,0.39,87.019,86.986,0.13]
[1773357417872,0.39,87.019,86.992,10.344]
[1773357418874,30.59664863,87.019,86.986,0.13]
[1773357420164,30.14280233,86.999,86.95,3.38457869]
[1773357420372,30.14280233,86.999,86.941,36.2]
[1773357420373,33.52738102,86.99,86.936,0.13]
[1773357420575,3.38457869,86.98,86.936,0.13]
[1773357420870,33.52738102,86.99,86.94,3.38457869]
[1773357421067,33.52738102,86.99,86.936,0.13]
[1773357421273,3.38457869,86.98,86.936,0.13]
[1773357421472,33.52738102,86.99,86.936,0.13]
[1773357421675,33.52738102,86.99,86.948,10.349]
[1773357421866,33.52738102,86.99,86.936,0.13]
[1773357421867,29.90616655,86.979,86.936,0.13]
[1773357422068,33.29074524,86.97,86.936,0.13]
[1773357422469,3.38457869,86.96,86.936,0.13]
[1773357422674,29.90616655,86.988,86.936,0.13]
[1773357423775,10.69323895,87.04,86.936,0.13]
[1773357423776,29.57424757,87.002,86.95,3.38457869]
[1773357423978,3.38457869,87.01,86.96,3.38457869]
[1773357424169,3.25457869,87.01,86.96,3.38457869]
[1773357424472,29.57424757,87.016,86.99,0.13]
[1773357425074,0.26,87.01,86.99,0.13]
[1773357426776,3.38457869,87.03,86.97,3.38457869]
[1773357427074,29.70589031,87.031,86.97,3.38457869]
[1773357427075,29.57589031,87.031,87.02,0.13]
[1773357427270,3.38457869,87.04,87.02,0.13]
[1773357427777,0.13,87.036,87.02,0.13]
[1773357428283,0.26,87.031,87.01,0.13]
[1773357429376,3.38457869,87.02,86.99,0.13]
[1773357429682,3.38457869,87.01,86.99,0.13]
[1773357430782,3.38457869,87.0,86.96,0.13]
[1773357430975,3.38457869,86.99,86.96,0.13]
[1773357431778,3.38457869,86.98,86.96,0.13]
[1773357432782,31.99381606,86.99,86.96,0.13]
[1773357433182,3.38457869,86.98,86.96,0.13]
[1773357434785,28.60923737,86.99,86.96,0.13]
[1773357434984,31.99381606,86.99,86.96,0.13]
[1773357437895,28.60923737,86.99,86.96,0.13]
[1773357438097,31.99381606,86.99,86.96,0.13]
[1773357441486,28.74259797,86.969,86.91,14.1161353]
[1773357441688,28.67759797,86.949,86.91,0.13]
[1773357442996,28.67759797,86.949,86.912,10.353]
[1773357446506,3.38457869,86.94,86.91,0.13]
[1773357447900,32.32802241,86.94,86.91,0.13]
[1773357448101,28.81344372,86.929,86.89,0.13]
[1773357449801,3.38457869,86.92,86.89,0.13]
[1773357450402,28.81344372,86.929,86.89,0.13]
[1773357451009,29.0302221,86.971,86.89,0.13]
[1773357451203,32.41480079,86.95,86.9,3.51457869]
[1773357451403,29.0302221,86.939,86.9,0.13]
[1773357452008,3.38457869,86.93,86.9,0.13]
[1773357454507,29.0302221,86.939,86.9,0.13]
[1773357454909,29.0302221,86.939,86.901,10.355]
[1773357456704,29.0302221,86.939,86.9,0.13]
[1773357457212,29.0302221,86.939,86.9,10.485]
[1773357457505,3.38457869,86.92,86.89,0.13]
[1773357457709,28.62099456,86.919,86.89,0.13]
[1773357463410,3.38906539,86.91,86.89,0.13]
[1773357463603,28.62099456,86.919,86.89,0.13]
[1773357468511,28.47768812,86.909,86.88,0.13]
[1773357468908,28.47768812,86.909,86.882,10.357]
[1773357471403,28.47768812,86.909,86.88,0.13]